Cogmind - Beta 16.1 @@@ ROGUE MODE // 2026.03.12 @ 18:15:52 Player: Kaisercar Result: Destroyed by G-34 Mercenary with Small Laser Performance ------------- Evolutions (0) 0 Regions Visited (2) 400 Robots Destroyed (27) 135 Value Destroyed (650) 650 Prototype IDs (0) 0 Alien Tech Used (0) 0 Bonus (0) 0 TOTAL SCORE: 1185 Bonus ------- None Cogmind --------- Core Integrity 0/250 Matter 290/300 Energy 91/100 System Corruption 3% Temperature Cool (6) Movement Treading (240) Ox1 Location -10/Mines Parts ------- > --- POWER (1) -------- (None) > --- PROPULSION (2) --- Light Treads Light Treads > --- UTILITY (2) ------ High-capacity Storage Unit > --- WEAPON (2) ------- Heavy Hammer > --- INVENTORY (20) --- Ion Engine Light Nuclear Core Light Treads Compact Wheel Compact Wheel Flight Unit Flight Unit Flight Unit Flight Unit Flight Unit Medium Storage Unit Visual Processing Unit Peak State ------------ > --- POWER ------------ Light Nuclear Core > --- PROPULSION ------- Light Treads Light Treads > --- UTILITY ---------- Medium Storage Unit Seismic Detector > --- WEAPON ----------- Small Laser Assault Rifle > --- INVENTORY -------- Light Treads Compact Wheel Compact Wheel Flight Unit Flight Unit Flight Unit Flight Unit Flight Unit Small Storage Unit EM Pulse Gun [Rating: 10] Favorites ----------- Power Ion Engine Engine Ion Engine Power Core Light Nuclear Core Propulsion Light Treads Treads Light Treads Utility Seismic Detector Device Seismic Detector Storage Medium Storage Unit Weapon Small Laser Energy Gun Small Laser Ballistic Gun Assault Rifle Impact Weapon Heavy Hammer Build | -11 -10 -10 ------- Run | Yrd Mat Min Slots Evolved . | . . . Power . | . . . Propulsion . | . . . Utility . | . . . Weapon . | . . . Parts Attached 18 | 7 10 1 Power 4 | 1 3 . Engine 3 | 1 2 . Core 1 | . 1 . Reactor . | . . . Propulsion 6 | 2 3 1 Treads 6 | 2 3 1 Leg . | . . . Wheel . | . . . Hover . | . . . Flight . | . . . Utility 4 | 2 2 . Device 1 | 1 . . Storage 3 | 1 2 . Processor . | . . . Hackware . | . . . Protection . | . . . Artifact . | . . . Weapon 4 | 2 2 . Energy Gun 2 | 1 1 . Energy Cannon . | . . . Ballistic Gun 1 | 1 . . Ballistic Cannon . | . . . Launcher . | . . . Special Weapon . | . . . Impact Weapon 1 | . 1 . Slashing Weapon . | . . . Piercing Weapon . | . . . Special Melee Weapon . | . . . Unidentified Prototypes . | . . . Parts Lost 7 | . 2 5 Power 3 | . 2 1 Propulsion 1 | . . 1 Utility 1 | . . 1 Weapon 2 | . . 2 Highest Loss Streak 3 | . 1 3 To Critical Strikes . | . . . Average Backups 10 | 3 10 13 Power 1 | . . 2 Propulsion 6 | 2 7 9 Utility 1 | . 1 2 Weapon . | . . . Tool/Special . | . . . Unused Backups 12 | . 3 9 Power 1 | . . 1 Propulsion 8 | . 1 7 Utility 2 | . 1 1 Weapon 1 | . 1 . Tool/Special . | . . . Average Slot Usage (%) 97 | . 99 73 Engine 13 | . 13 12 Treads 28 | . 28 28 Device 12 | . 14 1 Storage 14 | . 14 14 Energy Gun 13 | . 13 12 Ballistic Gun 11 | . 12 2 Impact Weapon 1 | . 1 1 Peak Build Rating 10 | 7 10 8 Average Rating 7 | 5 7 6 On Entrance 5 | . 7 9 Avg Prop Armor Cover (%) . | . . . Naked Turns . | . . . Heaviest Build 50 | 12 50 46 Greatest Support 40 | 40 40 40 Greatest Overweight (x) 1 | . 1 1 Average Overweight (x) . | . . 1 Largest Inventory Capacity 20 | 8 20 20 Average Capacity 12 | 7 12 20 Most Carried 14 | 6 14 14 Average Carried 10 | 4 10 13 Final Capacity 20 | 8 20 20 Final Carried 14 | 5 14 12 Class Distribution -------------------- 100% | Mutant Dominant Class ---------------- Mutant | -10/Materials Mutant | -10/Mines Resources | -11 -10 -10 ----------- Run | Yrd Mat Min Matter Collected 585 | 309 251 25 Remotely . | . . . Salvage Created 937 | 156 656 125 Parts 52 | 5 47 . Haulers Intercepted 1 | . 1 . Recyclers Shooed 2 | 1 1 . Parts Field Recycled . | . . . Retrieved Matter . | . . . Parts Self-Destructed . | . . . Prevented . | . . . Parts Restored . | . . . Kills | -11 -10 -10 ------- Run | Yrd Mat Min Combat Hostiles Destroyed 20 | . 17 3 Guns 19 | . 17 2 Classes Destroyed 6 | 2 4 . Tunneler 4 | 3 1 . Hauler 1 | . 1 . Recycler 1 | 1 . . Watcher 1 | . 1 . Swarmer 6 | . 6 . Grunt 14 | . 11 3 Best Kill Streak 6 | 4 6 2 Combat Bots Only 6 | . 6 2 Max Kills in Single Turn 1 | 1 1 1 Gunslinging . | . . . Exploded . | . . . Melee . | . . . Uniques/NPCs Destroyed . | . . . Combat | -11 -10 -10 -------- Run | Yrd Mat Min Hostile Shots Fired 107 | . 64 43 Missed 23 | . 19 4 Hits 84 | . 45 39 Projectile 84 | . 45 39 Critical Strikes 2 | . . 2 Damage Taken 988 | . 464 524 Core 256 | . 124 132 Absorbed by Shields . | . . . Core Remaining (%) 100 | 100 . . Volleys Fired 81 | 13 51 17 Largest 2 | 2 2 2 Hottest 60 | 60 60 60 Shots Fired 150 | 26 102 22 Gun 150 | 26 102 22 Cannon . | . . . Launcher . | . . . Special . | . . . Kinetic 69 | 13 51 5 Thermal 81 | 13 51 17 Explosive . | . . . Electromagnetic . | . . . Robot Hit Streak 20 | 8 20 7 Robot Miss Streak 2 | 2 2 1 Penetration Max . | . . . Secondary Targets 1 | . 1 . Max Gunslinging Chain 1 | . 1 . Shots Hit Robots 115 | 18 76 21 Core Hits 45 | 5 34 6 Critical Kills . | . . . Critical Parts Destroyed 1 | . . 1 Critical Strikes 1 | . . 1 Smash 1 | . . 1 Melee Attacks 4 | . 1 3 Impact 4 | . 1 3 Slashing . | . . . Piercing . | . . . Sneak Attacks . | . . . Combat Hostiles . | . . . Follow-up Attacks . | . . . Damage Inflicted 1457 | 208 931 318 Guns 1337 | 208 924 205 Cannons . | . . . Explosions . | . . . Melee 113 | . . 113 Ramming 7 | . 7 . Kinetic 662 | 98 512 52 Thermal 675 | 110 412 153 Explosive . | . . . Electromagnetic . | . . . Impact 113 | . . 113 Slashing . | . . . Piercing . | . . . Highest Corruption 3 | . 3 3 Average Corruption 2 | . 2 3 Corruption Purged . | . . . Corruption Blocked . | . . . Effects 6 | . 3 3 Message Errors 2 | . . 2 Heat Flow Errors 2 | . 1 1 Parts Fused 1 | . 1 . Data Loss (minor) 1 | . 1 . Overload Shots . | . . . Overflow Damage 62 | . . 62 Projectiles . | . . . Explosions . | . . . Melee 62 | . . 62 Knockbacks . | . . . Impact . | . . . Kinetic . | . . . Secondary . | . . . Self-Inflicted Damage . | . . . Shots . | . . . Rammed 2 | . 2 . Targets Rammed 2 | . 2 . Kicked . | . . . Crushed . | . . . Highest Temperature 219 | . 219 153 Average Temperature 50 | . 35 72 Received Heat Transfer 537 | . 201 336 Siege Activations . | . . . Martial Activations . | . . . Shielding Activations . | . . . Robots Disrupted . | . . . Combat Hostiles . | . . . Robots Corrupted 1 | . . 1 Combat Hostiles 1 | . . 1 Parts Fried 1 | . . 1 Impact Corruptions 2 | . . 2 Robots Melted . | . . . Combat Hostiles . | . . . Parts Melted 2 | . 1 1 Heat Transferred 1525 | 250 925 350 Parts Sabotaged . | . . . Parts Stolen . | . . . Parts Stripped . | . . . Power Chain Reactions . | . . . Alert | -11 -10 -10 ------- Run | Yrd Mat Min Maximum Alert Level . | . . . Low Security (%) 100 | 100 100 100 Level 1 . | . . . Level 2 . | . . . Level 3 . | . . . Level 4 . | . . . Level 5 . | . . . High Security . | . . . Max Security . | . . . Peak Influence 196 | 5 196 51 Initial 31 | . . 31 Average 116 | 1 135 32 Influence Increases 676 | 20 576 80 Destroy 0b10 Robot/C 400 | . 340 60 Destroy 0b10 Robot/NC 35 | 20 15 . Destroy Leader 104 | . 84 20 Successful Hack 16 | . 16 . Select Force Hacks 60 | . 60 . Disable Machine 15 | . 15 . Destroy Structure 1 | . 1 . Lose Combat Pursuer 45 | . 45 . Influence Decreases 656 | 20 496 140 Entered New Map 49 | . . 49 Time Decay 536 | 20 466 50 Lost Part 61 | . 20 41 Lost Ally 10 | . 10 . Squads Dispatched 5 | . 5 . Investigation 4 | . 4 . Extermination . | . . . Reinforcement 1 | . 1 . Assault . | . . . Garrison . | . . . Intercept . | . . . Searches Triggered . | . . . Construction Impeded . | . . . Haulers Reinforced . | . . . Active Scanning Responses . | . . . Cargo Convoy Interrupts . | . . . Stealth | -11 -10 -10 --------- Run | Yrd Mat Min Distress Signals 2 | . 2 . Communications Jammed . | . . . Distress Signals . | . . . Times Spotted 33 | . 29 4 Peak Tracking Total 4 | . 4 2 Tactical Retreats 1 | . 1 . Traps | -11 -10 -10 ------- Run | Yrd Mat Min Traps Triggered 5 | . 5 . Indirectly . | . . . Trap Hack Attempts . | . . . Triggered . | . . . Disarmed . | . . . Reprogrammed . | . . . Reused . | . . . Traps Extracted . | . . . Installed . | . . . Triggered . | . . . Machines | -11 -10 -10 ---------- Run | Yrd Mat Min Machines Disabled 1 | . 1 . Max in Single Turn 1 | . 1 . Machines Repaired . | . . . Machines Dismantled . | . . . Machines Sabotaged . | . . . Overloaded Fab Kills . | . . . Hacking | -11 -10 -10 --------- Run | Yrd Mat Min Machines Accessed 8 | . 8 . Terminals 6 | . 6 . Fabricators . | . . . Repair Stations . | . . . Recycling Units 2 | . 2 . Scanalyzers . | . . . Garrison Access . | . . . Total Hacks 18 | . 18 . Successful 9 | . 9 . Failed 9 | . 9 . Catastrophic 1 | . 1 . Database Lockouts . | . . . Manual 14 | . 14 . Terminals 14 | . 14 . Fabricators . | . . . Repair Stations . | . . . Recycling Units 4 | . 4 . Scanalyzers . | . . . Garrison Access . | . . . Terminal Hacks 2 | . 2 . Part Schematic 1 | . 1 . Hauler Manifests 1 | . 1 . Fabricator Hacks . | . . . Repair Station Hacks . | . . . Recycling Unit Hacks 1 | . 1 . Retrieve Components 1 | . 1 . Scanalyzer . | . . . Garrison Access Hacks . | . . . Unauthorized Hacks 6 | . 6 . Terminals 4 | . 4 . Assimilate 1 | . 1 . Botnet 1 | . 1 . Skim 2 | . 2 . Fabricators . | . . . Repair Stations . | . . . Recycling Units 2 | . 2 . Tunnel 2 | . 2 . Scanalyzers . | . . . Garrison Access . | . . . Data Cores Recovered . | . . . Used . | . . . Hacking Detections 5 | . 5 . Full Trace Events 1 | . 1 . Feedback Events . | . . . Feedback Blocked . | . . . Robot Schematics Acquired . | . . . Robots Built . | . . . Authchips . | . . . Time . | . . . Total Robot Build Rating . | . . . Part Schematics Acquired 1 | . 1 . Parts Built . | . . . Authchips . | . . . Time . | . . . Total Part Build Rating . | . . . Part Studies Acquired . | . . . Parts Repaired . | . . . Time . | . . . Parts Recycled . | . . . Recycled Matter . | . . . Retrieved Matter . | . . . Retrieved Components 1 | . 1 . Parts Scanalyzed . | . . . Part Schematics Acquired . | . . . Parts Damaged . | . . . Bothacking | -11 -10 -10 ------------ Run | Yrd Mat Min Used RIF Installer . | . . . Robots Hacked . | . . . Non-combat . | . . . Combat . | . . . Robot Hacks Applied . | . . . Relay Couplers Released . | . . . Fabnet Peak Effective % . | . . . Robots Rewired . | . . . Allies Hacked . | . . . Hacks Repelled . | . . . Allies | -11 -10 -10 -------- Run | Yrd Mat Min Total Allies 1 | . 1 . Largest Group 1 | . 1 . Highest-Rated Group 10 | . 10 . Highest-Rated Ally 10 | . 10 . Total Orders . | . . . Ally Attacks . | . . . Total Damage . | . . . Kills . | . . . Allies Corrupted . | . . . Allies Melted . | . . . Intel | -11 -10 -10 ------- Run | Yrd Mat Min Active Infowar (turns) 1282 | 21 1260 1 Seismic 1282 | 21 1260 1 Robot Analysis Total . | . . . Derelict Logs Recovered . | . . . Drone Launches . | . . . Drone Recoveries . | . . . Exploration | -11 -10 -10 ------------- Run | Yrd Mat Min Turns Passed 1492 | 128 1260 104 Spaces Moved 622 | 49 551 22 Core 4 | 4 . . Treads 618 | 45 551 22 Legs . | . . . Wheels . | . . . Hover . | . . . Flight . | . . . Fastest Speed 50 | 50 160 240 Average Speed 177 | 151 177 240 Slowest Speed 240 | 160 240 240 Overloaded Moves . | . . . Propulsion Burnouts . | . . . Robots Hopped . | . . . Potential Cave-ins . | . . . Cave-ins Triggered . | . . . Exploration Rate (%) 36 | 4 91 14 Regions Visited 2 Branch Regions 1 Pre-discovered Areas 2 | . 2 . Known Exits Taken . | . . . Unknown Exits Taken 2 | 1 1 . Scrap Searched . | . . . Spaces Dug . | . . . Terrain Destroyed . | . . . Melee . | . . . Projectile . | . . . AOE . | . . . Terrain Rammed . | . . . Walls Destroyed . | . . . Machines Disabled . | . . . Actions | -11 -10 -10 --------- Run | Yrd Mat Min Total 852 | 74 731 47 Wait 90 | . 88 2 Move 620 | 48 550 22 Hop . | . . . Pick Up 22 | 6 16 . Fast Attach 9 | 6 3 . Attach 4 | 1 1 2 Detach . | . . . Swap 9 | . 8 1 Drop 11 | . 11 . Fire 81 | 13 51 17 Melee 4 | . 1 3 Ram . | . . . Kick . | . . . Crush 2 | . 2 . Escape Stasis . | . . . Rewire . | . . . Trap . | . . . Miscellaneous . | . . . Route ------- -11/Scrapyard -10/Materials (discovered 4 exits: [*Mat x3] / [*Min]) -10/Mines History --------- Turn | Location | Event 8 | -11/Scrapyard | Discovered new exit (range 14) 129 | -11/Scrapyard | Entered Materials 302 | -10/Materials | Build established: Mutant 305 | -10/Materials | Discovered new exit (range 10) 561 | -10/Materials | Discovered new exit (range 9) 781 | -10/Materials | Discovered new exit (range 11) 1162 | -10/Materials | Discovered new exit (range 12) 1389 | -10/Materials | Entered Mines 1392 | -10/Mines | Core integrity fell below 50% 1465 | -10/Mines | Core integrity fell below 20% 1493 | -10/Mines | Destroyed by G-34 Mercenary with Small Laser Last Messages --------------- 01414_ Imp. Heat Sink melted. 01414_ G-47 Trooper destroyed. 01416_ Acquired 25 matter. 01429_ EYDWCLNL&O,AY4FEMF=A,JOULL5WUTZ,T 01463_ System corrupted: Heat flow error (+133). 01464_ K-01 Serf collects debris. 01481_ Sml. Laser destroyed. 01484_ Lgt. Treads destroyed. 01486_ G-47 Trooper suffers critical hit (Smash). 01486_ Destroyed Particle Gun. 01486_ G-47 Trooper system corrupted by crushing effect. 01486_ Ion Engine destroyed. 01487_ G-47 Trooper system terminally corrupted. 01487_ Lgt. Nuclear Core fried. 01489_ K-01 Serf collects debris. 01492_ Destroyed Heat Sink. 01492_ G-34 Mercenary system corrupted by crushing effect. Map ----- +----------------------------------------------------+ | ????????????????????????????????????????????????? | | ????????????????????????????????????????????????? | | ????????????????????????????????????????????????? | | ????????????????????????????????????????????????? | | ????????????????????????????????????????????????? | | ????????????????????????????????????????????????? | | ????????????????????????????????????????????????? | | ????????????????????????????????????????????????? | | ????????????????????????????????????????????????? | | ????????????????????????????????????????????????? | | ????????????????????????????????????????????????? | | ????????????????? ???????????????????????????? | | ????????????????? u#?????????????????????????? | | ??????????????? #?????????????????????????? | | ?????????????? ##????????????????????????? | | ??????????????? #??????????? ????????????? | | ???????????????# #?????????? ????????????? | | ???????????????# ##???##??? ?????????????? | | ???????????????# ##? ??? ???????????????? | | ????????????????# ## #?? ????????????????? | | ?????????????????# # ## ?????????????????? | | ????????????????## t??????????????????? | | ???????????###### ???????????????????? | | ??????????## ##???????????????????? | | ??????????# ## g #???????????????????? | | ??????????# #??#@ ##??????????????????? | | ???????????# #### k #??????????????????? | | ???????????####### % #??????????????????? | | ?????????????????# ##### #??????????????????? | | ?????????????????# #???? #??????????????????? | | ?????????????????# #???? ##??????????????????? | | ?????????????????# #???? #???????????????????? | | ?????????????????# #????# ???????????????????? | | ?????????????????# #?????# ??????????????????? | | ?????????????????# #?????? ?????????????????? | | ?????????????????# ####??? ?????????????????? | | ?????????????????# # ##?? #????????????????? | | ????????????????##%% #??? ????????????????? | | ????????????????# #??? ???????????????? | | ????????????????# ##??? ????????????????? | | ????????????????## ##????????????????????????? | | ?????????????????######?????????????????????????? | | ????????????????????????????????????????????????? | | ????????????????????????????????????????????????? | | | | | | | | | | | | | +----------------------------------------------------+ Best States ------------- Heat Dissipation 25 Energy Generation 14 Energy Capacity 250 Matter Stores 300 Matter Capacity 300 Sight Range 16 Terrain Scan Density 10 Evasion (%) 40 Recoil Reduction 2 Item Schematics ----------------- Lrg. Storage Unit | -10/Materials | Hacked Robot Schematics ------------------ None Fabricated ------------ Nothing Repaired ---------- Nothing Studied --------- None Alien Tech Used ----------------- None Achievements -------------- None Challenges ------------ None Game ------ Seed AuthchipGunInterrupter Manual? 0 Play Time 00:08:26 Cumulative 134.8 hours Start 2026.03.12 @ 18:02:32 End 2026.03.12 @ 18:15:52 Sessions 1 Manual Loads 0 Difficulty Rogue Special Mode None Game No. 148 Rogue 73 Adventurer 75 Explorer 0 Win Type - Total 5 Types 5/0/0/0/0/0/0/0/0/0 Lore% 60 Gallery% 57 Achievement% 47 Wizard Run 0 Options --------- Layout 2 ASCII 0 Keyboard 0 Movement Numpad Keybinds 0 Fullscreen 2 Font 24/Smallcaps Map View 50x44 Zoom Use 0% Tactical HUD 1 Map Filters NONE Filters NONE Steam 1 RUN: 3442944a-954a-4019-a634-018f408a44c8